[Event "MCCT Oslo Esports Cup 2022"]
[Site "Oslo"]
[Date "2022.04.20"]
[Round "4.1"]
[White "Hansen, Eric"]
[Black "Le, Quang Liem"]
[Result "1/2-1/2"]
[ECO "C77"]
[WhiteElo "2606"]
[BlackElo "2709"]
[Annotator "TA"]
[PlyCount "119"]
[EventDate "2022.04.14"]
[EventType "tourn"]
[EventCountry "NOR"]
[SourceTitle "playchess.com"]
[Source "ChessBase"]
[SourceQuality "1"]
[TimeControl "1500+10"]

{[%evp 11,119,9,21,4,5,-39,0,-29,2,2,16,20,27,25,23,0,-2,-5,-6,-4,-4,-6,-14,-17,-27,-23,-16,-33,-12,-27,-18,-28,-4,-8,-2,-7,-7,-8,-8,-8,-8,-11,-13,-12,0,0,0,-19,0,0,0,-26,-22,-22,-22,-23,-6,-7,-12,-25,-27,-24,-30,-33,-29,-31,-25,-27,-21,-23,-23,-30,-30,-30,-30,-30,-30,-30,-30,-30,-30,-31,-12,-36,-33,-40,-15,-14,-14,-14,-8,-8,0,0,0,0,0,0,0,0,0,0,8,8,8,8,8,8,8,8]} 1. e4 {[%emt 0:10:00]} e5 {[%emt 0:10:00]} 2. Nf3 {[%emt 0:00:02]} Nc6 {[%emt 0:00:01]} 3. Bb5 {[%emt 0:00:27]} a6 {[%emt 0:00:03]} 4. Ba4 {[%emt 0:00:01]} Nf6 {[%emt 0:00:02]} 5. d3 {[%emt 0:00:21]} Bc5 {[%emt 0:00:03][%cal Bf8c5,Bc5d6,Bd6e5][%mdl 32]} 6. Bxc6 {[%emt 0:00:19]} dxc6 {[%emt 0:00:00]} 7. h3 {[%emt 0:00:02] C77: Ruy Lopez: 3...a6 4 Ba4 Nf6, unusual lines.} Qe7 {[%emt 0:00:03]} 8. O-O {[%emt 0:00:28]} Bd6 {[%emt 0:02:07]} (8... Rg8 $5 {[%cal Rg7g5]}) 9. Nbd2 {[%emt 0:00:23]} Be6 {[%emt 0:00:09] [#]} (9... g5 $5) 10. Ng5 $146 {[%emt 0:00:02]} ({Predecessor:} 10. b3 Nh5 11. Bb2 Nf4 12. Nc4 f6 13. Kh2 O-O-O 14. Ne3 Qd7 15. Ng1 g5 16. Ne2 {1-0 (45) Gunnarsson,A (2443)-Thorfinnsson,B (2408) Atskakmot Islands 2009}) 10... Bd7 {[%emt 0:01:11]} 11. Nc4 {[%emt 0:00:07]} h6 {[%emt 0:00:02]} 12. Nf3 {[%emt 0:00:03]} b5 {[%emt 0:00:06]} 13. Ncxe5 {[%emt 0:06:30]} Bxe5 {[%emt 0:00:06]} 14. d4 {[%emt 0:00:01]} Bd6 {[%emt 0:01:18]} ({Don't take} 14... Nxe4 15. Nxe5 Nf6 16. Re1 $16) 15. e5 {[%emt 0:00:02] [#]} O-O $1 {[%emt 0:00:01]} 16. Re1 {[%emt 0:00:24] [#]} Be6 $1 {[%emt 0:00:15]} 17. Bf4 {[%emt 0:00:53]} (17. b3 Rfe8) 17... Nd5 {[%emt 0:00:24]} 18. exd6 {[%emt 0:00:04]} cxd6 {[%emt 0:00:00]} 19. Bg3 {[%emt 0:01:35]} Rfe8 {[%emt 0:00:05]} 20. a4 {[%emt 0:00:02]} Qd7 {[%emt 0:01:02]} 21. Qd2 {[%emt 0:00:16]} Bf5 {[%emt 0:00:24]} 22. Rxe8+ {[%emt 0:00:10]} Rxe8 {[%emt 0:00:03]} 23. axb5 {[%emt 0:00:02]} axb5 {[%emt 0:00:00]} 24. Re1 {[%emt 0:00:15]} Re6 {[%emt 0:02:18]} 25. Rxe6 {[%emt 0:00:25]} Qxe6 {[%emt 0:00:00]} 26. Qa5 {[%emt 0:00:08]} Kh7 {[%emt 0:00:28]} 27. Qa8 {[%emt 0:01:39]} Qd7 {[%emt 0:00:49]} 28. c3 {[%emt 0:00:14]} Nf6 {[%emt 0:00:38]} 29. Bf4 {[%emt 0:01:00]} Nd5 {[%emt 0:02:00]} 30. Bg3 {[%emt 0:00:09]} Nf6 {[%emt 0:00:42]} 31. Bf4 {[%emt 0:00:01]} Be4 {[%emt 0:01:03]} 32. Nd2 {[%emt 0:00:07]} Bd5 {[%emt 0:00:01]} 33. Qa1 {[%emt 0:00:24]} Qe6 {[%emt 0:00:49]} 34. Qb1+ {[%emt 0:00:08]} Kg8 {[%emt 0:00:01]} 35. Qd3 {[%emt 0:00:51]} Nh5 {[%emt 0:00:28]} 36. Be3 {[%emt 0:00:29]} f5 {[%emt 0:00:08][%cal Bf7f5,Bf5f4][%mdl 32]} 37. f3 {[%emt 0:00:02]} f4 {[%emt 0:00:39]} 38. Bf2 {[%emt 0:00:03]} Nf6 {[%emt 0:00:00]} 39. h4 {[%emt 0:00:20]} Kf7 {[%emt 0:00:07]} 40. Qf1 {[%emt 0:00:48]} (40. Kf1 {is interesting.} Bc4 41. Nxc4 Qxc4 42. Ke2) 40... g5 {[%emt 0:00:15]} 41. hxg5 {[%emt 0:00:05]} hxg5 {[%emt 0:00:00]} 42. Qe1 {[%emt 0:00:01]} Qf5 {[%emt 0:00:30] Hoping for ...Qc2.} 43. Qb1 {[%emt 0:00:04] Against Qc2} Qxb1+ {[%emt 0:00:08]} (43... Qc8 {is more complex.} 44. b3 Qe6 45. c4 bxc4 46. bxc4 Bxc4 47. Qb7+ Kg6) 44. Nxb1 $11 {[%emt 0:00:01][%mdl 4096] Endgame KBN-KBN} g4 {[%emt 0:00:00]} 45. fxg4 {[%emt 0:00:23]} Nxg4 {[%emt 0:00:00]} 46. Nd2 {[%emt 0:00:07]} Ke6 {[%emt 0:00:03] Black wants to play ...Ne3.} 47. b3 {[%emt 0:00:27] aiming for c4.} Kf5 {[%emt 0:00:25]} 48. c4 {[%emt 0:00:03]} bxc4 {[%emt 0:00:00]} (48... Be4 $5) 49. bxc4 {[%emt 0:00:00] The position is equal.} Bf7 {[%emt 0:00:07]} 50. g3 {[%emt 0:01:11]} Nxf2 {[%emt 0:01:03]} 51. Kxf2 {[%emt 0:00:02] KB-KN} Kg4 {[%emt 0:00:01]} 52. gxf4 {[%emt 0:00:07]} Kxf4 {[%emt 0:00:00]} 53. Ke2 {[%emt 0:00:06]} Bg6 {[%emt 0:00:02]} 54. Nb3 $1 {[%emt 0:00:32]} Ke4 {[%emt 0:00:21]} 55. Kd2 {[%emt 0:00:04]} Bf7 {[%emt 0:01:06]} 56. Kc3 {[%emt 0:00:03]} c5 {[%emt 0:00:17]} 57. dxc5 {[%emt 0:00:07]} dxc5 {[%emt 0:00:00]} 58. Nxc5+ {[%emt 0:00:02]} Kf5 {[%emt 0:00:01]} 59. Nb3 {[%emt 0:00:03]} Bxc4 {[%emt 0:00:02]} 60. Kxc4 {[%emt 0:00:01] Weighted Error Value: White=0.04 (flawless) /Black=0.06 (flawless)} 1/2-1/2

[Event "MCCT Oslo Esports Cup 2022"]
[Site "Oslo"]
[Date "2022.04.20"]
[Round "4.2"]
[White "Mamedyarov, Shakhriyar"]
[Black "Duda, Jan-Krzysztof"]
[Result "1/2-1/2"]
[ECO "D78"]
[WhiteElo "2771"]
[BlackElo "2750"]
[Annotator "TA"]
[PlyCount "80"]
[EventDate "2022.04.14"]
[EventType "tourn"]
[EventCountry "NOR"]
[SourceTitle "playchess.com"]
[Source "ChessBase"]
[SourceQuality "1"]
[TimeControl "1500+10"]

{[%evp 20,80,2,-4,33,33,31,25,24,29,57,0,0,0,57,66,61,-6,9,-27,-15,-23,0,0,0,-85,-18,-20,-32,-22,-41,-79,8,8,8,7,40,32,36,47,41,36,38,11,35,37,20,0,14,12,12,8,13,12,10,3,5,0,9,0,6,0,8]} 1. d4 {[%emt 0:10:00]} Nf6 {[%emt 0:10:00]} 2. c4 {[%emt 0:00:03]} g6 {[%emt 0:00:01]} 3. g3 {[%emt 0:00:03]} c6 {[%emt 0:00:03]} 4. Nf3 {[%emt 0:00:03]} d5 {[%emt 0:00:08]} 5. Qb3 {[%emt 0:00:06]} Bg7 {[%emt 0:00:05]} 6. Bg2 {[%emt 0:00:13]} O-O {[%emt 0:00:11]} 7. Nc3 {[%emt 0:00:07]} dxc4 {[%emt 0:00:46]} 8. Qxc4 {[%emt 0:00:00]} Bf5 {[%emt 0:00:01]} 9. O-O {[%emt 0:00:05]} Nbd7 {[%emt 0:00:03][%cal Bb8d7,Bd7b6,Bb6c4][%mdl 32]} 10. Qb4 {[%emt 0:00:31]} Nb6 {[%emt 0:02:13]} 11. Qb3 {[%emt 0:00:18] [#]} Rc8 $146 {[%emt 0:01:31] D78: Fianchetto Grünfeld: 6 0-0 c6.} ({Predecessor:} 11... a5 12. Re1 Ne4 13. Nh4 Be6 14. Qc2 Nd6 15. Nf3 Nb5 16. Rd1 Rc8 17. h3 Qd7 18. Kh2 Rfd8 19. Bf4 Qe8 20. e3 Nd5 21. Na4 Nxf4 22. gxf4 Bf5 23. Qb3 Be6 24. Qc2 Bf5 25. Qb3 Be6 26. Qc2 {½-½ (26) Mamedyarov,S (2800)-Grischuk,A (2761) Paris 2017}) 12. Rd1 {[%emt 0:02:10]} Ne4 {[%emt 0:00:51]} 13. Ng5 {[%emt 0:01:32]} Nxc3 {[%emt 0:03:24] White has an edge.} 14. bxc3 {[%emt 0:00:04]} Bg4 {[%emt 0:00:00]} 15. Qc2 {[%emt 0:01:12]} (15. f3 $14 Bd7 16. a4) 15... Nc4 $11 {[%emt 0:00:26]} 16. h3 {[%emt 0:01:04]} Bf5 {[%emt 0:00:52]} (16... Bd7 $1 $11) 17. e4 $1 $14 {[%emt 0:00:13]} Bd7 {[%emt 0:00:01]} 18. a4 {[%emt 0:02:12]} (18. Qe2 $14 b5 19. e5) 18... c5 $11 {[%emt 0:00:23] aiming for ...cxd4.} 19. Qe2 {[%emt 0:01:58]} (19. Qa2 $5 {[%cal Ra2c4]}) 19... cxd4 {[%emt 0:00:04]} 20. cxd4 {[%emt 0:00:00]} Qa5 {[%emt 0:00:17]} 21. e5 {[%emt 0:00:19]} Bxa4 {[%emt 0:01:43]} 22. Rd3 {[%emt 0:00:01] [#]} (22. Qe4 $1 $11) 22... Bd1 {[%emt 0:00:53]} 23. Rxd1 {[%emt 0:03:33]} Qxa1 {[%emt 0:00:02]} 24. Bxb7 {[%emt 0:00:33]} Rc7 {[%emt 0:00:31]} 25. e6 {[%emt 0:00:07]} Rxb7 {[%emt 0:02:11]} (25... f6 $17 26. Bf4 Qb2 27. Qxb2 Nxb2 28. Bxc7 Nxd1) 26. exf7+ {[%emt 0:00:03]} Kh8 {[%emt 0:00:01] ...Nd6 is the strong threat.} 27. Qxc4 {[%emt 0:00:32] Threatens to win with Ne6.} Qb1 {[%emt 0:00:31]} 28. Ne6 {[%emt 0:00:20]} Qb3 $1 {[%emt 0:00:11]} 29. Qxb3 {[%emt 0:00:30] Chess con chili.} Rxb3 {[%emt 0:00:00]} 30. Nxf8 {[%emt 0:00:07]} Bxf8 $14 {[%emt 0:00:00][%mdl 4096] Endgame KRB-KRB} 31. Be3 {[%emt 0:00:27]} Kg7 {[%emt 0:00:46]} 32. Ra1 {[%emt 0:00:01]} Rb7 {[%emt 0:00:01][%cal Bb3b7,Bb7d7,Bd7d6,Bd6b6][%mdl 32]} 33. d5 {[%emt 0:00:01] The position is equal.} Rd7 {[%emt 0:00:05]} 34. Ra5 {[%emt 0:00:02]} a6 $1 {[%emt 0:00:02]} 35. Kg2 {[%emt 0:00:28]} Kxf7 {[%emt 0:00:10]} 36. Kf3 {[%emt 0:00:01]} Rd6 {[%emt 0:00:20]} 37. Bf4 {[%emt 0:00:23]} Rb6 {[%emt 0:00:06]} 38. Be3 {[%emt 0:00:01]} Rd6 {[%emt 0:00:05]} 39. Bf4 {[%emt 0:00:06]} Rb6 {[%emt 0:00:00]} 40. Be3 {[%emt 0:00:01]} Rd6 {[%emt 0:00:01] Weighted Error Value: White=0.18 (very precise) /Black=0.18 (very precise)} 1/2-1/2

[Event "MCCT Oslo Esports Cup 2022"]
[Site "Oslo"]
[Date "2022.04.20"]
[Round "4.2"]
[White "Van Foreest, Jorden"]
[Black "Giri, Anish"]
[Result "1/2-1/2"]
[ECO "D00"]
[WhiteElo "2714"]
[BlackElo "2773"]
[Annotator "TA"]
[PlyCount "95"]
[EventDate "2022.04.14"]
[EventType "tourn"]
[EventCountry "NOR"]
[SourceTitle "playchess.com"]
[Source "ChessBase"]
[SourceQuality "1"]
[TimeControl "1500+10"]

{[%evp 9,95,0,0,0,0,0,-17,-12,-6,-29,-21,-33,-19,-27,-8,-18,0,-38,-23,-21,-29,-34,-29,-39,-11,-84,-79,-98,27,0,0,0,50,58,52,52,48,50,54,57,58,59,62,46,43,44,45,45,53,52,58,47,48,42,68,70,70,62,65,0,80,50,70,72,62,73,78,0,0,0,0,0,0,0,0,-1,0,0,0,0,0,0,0,0,0,0,0,0]} 1. Nc3 {[%emt 0:10:00]} d5 {[%emt 0:10:00]} 2. d4 {[%emt 0:00:03]} Nf6 {[%emt 0:00:06]} 3. Bf4 {[%emt 0:00:03]} e6 {[%emt 0:00:05]} 4. Nb5 {[%emt 0:00:14]} Na6 {[%emt 0:00:04]} 5. e3 {[%emt 0:00:05]} Be7 {[%emt 0:00:01]} 6. Nf3 {[%emt 0:00:10] D00: 1 d4 d5: Unusual lines.} O-O {[%emt 0:00:06]} 7. h4 {[%emt 0:00:08]} c6 {[%emt 0:00:24][%cal Bc7c6,Bc6c5][%mdl 32]} 8. Nc3 {[%emt 0:00:04]} c5 {[%emt 0:00:01] [#]} 9. Ne5 $146 {[%emt 0:00:26]} ({Predecessor:} 9. h5 h6 10. g4 Ne4 11. Nxe4 dxe4 12. Ne5 Nb4 13. c3 Nd5 14. Bg3 Bd7 15. Bg2 {0-1 (53) Matlakov,M (2688)-Azarov,S (2604) Tornelo INT 2021}) 9... Nb4 {[%emt 0:00:53]} 10. h5 {[%emt 0:00:55]} h6 {[%emt 0:00:03]} 11. g4 {[%emt 0:00:40]} Nh7 {[%emt 0:02:40] Against g5} 12. Bg2 {[%emt 0:00:38]} Bd7 {[%emt 0:00:47]} 13. O-O {[%emt 0:00:32]} Rc8 {[%emt 0:00:02]} 14. dxc5 {[%emt 0:00:19]} Bxc5 {[%emt 0:00:06]} 15. a3 {[%emt 0:00:36]} Nc6 {[%emt 0:00:02]} 16. Nxd7 {[%emt 0:00:16]} Qxd7 {[%emt 0:00:01]} 17. e4 {[%emt 0:00:24] [#]} (17. Ne4 $11 Be7 18. c4) 17... d4 $1 $17 {[%emt 0:02:45]} 18. e5 {[%emt 0:00:30] [#] Prevents Bd6.} Ng5 {[%emt 0:01:49]} ({Better is} 18... f6 $1 $17) 19. Ne4 $36 {[%emt 0:00:53][%mdl 2048] White fights for an advantage.} (19. Qd3 $5 {[%cal Rf4g3]}) 19... Nxe4 {[%emt 0:00:50]} 20. Bxe4 {[%emt 0:00:00]} d3 {[%emt 0:01:08]} ({Black should play} 20... f6 $1 $11) 21. Qxd3 $14 {[%emt 0:01:47]} Qxd3 {[%emt 0:00:03]} 22. Bxd3 {[%emt 0:00:22]} ({Of course not} 22. cxd3 Bd4 $15) 22... Bd4 {[%emt 0:00:03][%csl LRb2,LRe5]} 23. c3 {[%emt 0:00:14]} Bxe5 {[%emt 0:00:03]} 24. Be3 {[%emt 0:00:01]} Bc7 {[%emt 0:00:13]} 25. Rad1 {[%emt 0:00:35]} Bb6 {[%emt 0:00:20]} 26. Bc1 {[%emt 0:02:27] &Bianco is more active.} Ne5 {[%emt 0:00:28]} 27. Be2 $1 {[%emt 0:00:05]} Rfd8 {[%emt 0:00:45]} 28. Kg2 {[%emt 0:00:07]} Kf8 {[%emt 0:00:21]} 29. f4 {[%emt 0:00:49]} Rxd1 {[%emt 0:00:01]} 30. Rxd1 {[%emt 0:00:01]} Nc4 {[%emt 0:00:01]} 31. Kf3 {[%emt 0:00:40]} Ke7 {[%emt 0:00:25]} 32. Bd3 {[%emt 0:00:33]} Na5 {[%emt 0:00:33]} 33. Bd2 {[%emt 0:00:45]} Nc4 {[%emt 0:00:20]} 34. Bc1 {[%emt 0:00:07]} (34. Bxc4 $5 Rxc4 35. b3 $14) 34... Na5 $1 {[%emt 0:00:01]} 35. Bc2 {[%emt 0:00:26]} Nc4 {[%emt 0:00:01]} 36. a4 {[%emt 0:00:09]} Bc5 {[%emt 0:00:37]} 37. b3 {[%emt 0:00:28]} Nd6 {[%emt 0:00:20]} 38. Bd2 {[%emt 0:00:05]} (38. Bd3 $16) 38... Bb4 $1 $11 {[%emt 0:00:12] The position is equal.} 39. c4 {[%emt 0:01:51]} Bxd2 {[%emt 0:00:01]} 40. Rxd2 {[%emt 0:00:00][%mdl 4096] Endgame KRB-KRN} a5 {[%emt 0:00:02]} 41. Ke3 {[%emt 0:00:14]} b6 {[%emt 0:00:23]} 42. Be4 {[%emt 0:00:01]} Rc5 {[%emt 0:00:13]} 43. Bf3 {[%emt 0:00:06]} f6 {[%emt 0:01:03]} 44. Rd1 {[%emt 0:00:09]} Nf7 {[%emt 0:00:21]} 45. Be4 {[%emt 0:00:06]} Nd6 {[%emt 0:00:04]} 46. Bf3 {[%emt 0:00:03]} Nf7 {[%emt 0:00:04]} 47. Be4 {[%emt 0:00:01]} Nd6 {[%emt 0:00:01]} 48. Bf3 {[%emt 0:00:01] Weighted Error Value: White=0.11 (very precise) /Black=0.10 (very precise)} 1/2-1/2

[Event "MCCT Oslo Esports Cup 2022"]
[Site "Oslo"]
[Date "2022.04.20"]
[Round "4.2"]
[White "Le, Quang Liem"]
[Black "Hansen, Eric"]
[Result "1-0"]
[ECO "A30"]
[WhiteElo "2709"]
[BlackElo "2606"]
[Annotator "TA"]
[PlyCount "113"]
[EventDate "2022.04.14"]
[EventType "tourn"]
[EventCountry "NOR"]
[SourceTitle "playchess.com"]
[Source "ChessBase"]
[SourceQuality "1"]
[TimeControl "1500+10"]

{[%evp 14,113,36,33,29,29,39,31,30,30,40,17,17,11,38,35,48,45,54,60,91,77,91,91,72,68,82,78,72,23,35,17,14,15,20,12,6,0,0,-1,0,0,24,39,40,55,308,221,287,331,323,310,304,302,303,281,293,281,226,67,164,79,402,265,265,253,973,565,507,1674,1122,1033,12829,12831,1402,1524,12838,12839,12839,12839,12842,12842,12843,12843,12844,12844,12845,12845,12846,12847,12847,12847,12848,12848,12849,12849,12850,12848,12849,12849,12850,12850]} 1. Nf3 {[%emt 0:10:00]} Nf6 {[%emt 0:10:00]} 2. c4 {[%emt 0:00:03]} b6 {[%emt 0:00:22]} 3. g3 {[%emt 0:00:17]} Bb7 {[%emt 0:00:01]} 4. Bg2 {[%emt 0:00:03]} c5 {[%emt 0:00:06]} 5. O-O {[%emt 0:00:02]} g6 {[%emt 0:00:02]} 6. Nc3 {[%emt 0:00:09]} d6 {[%emt 0:00:25]} 7. Re1 {[%emt 0:00:53]} Bg7 {[%emt 0:00:55]} 8. e4 {[%emt 0:00:03]} e5 {[%emt 0:01:03] Against d4. A30: Symmetrical English: Double Fianchetto and Hedgehog.} 9. d4 {[%emt 0:00:10]} Nc6 {[%emt 0:00:22][%cal Rc5d4]} 10. dxe5 {[%emt 0:00:57]} dxe5 {[%emt 0:00:06] White is slightly better.} 11. Nd5 {[%emt 0:00:10]} h6 {[%emt 0:01:17] [#]} 12. Bd2 $1 $146 {[%emt 0:00:57][%mdl 8] A top novelty.} ({Predecessor:} 12. b3 O-O 13. Bb2 Re8 14. Qd2 Nh7 15. Rad1 Nf8 16. h4 Ne6 17. Nh2 Ncd4 18. Qd3 {0-1 (52) Levin,F (2503)-Nikolic,P (2606) Germany 2016}) 12... O-O {[%emt 0:00:03]} 13. a3 {[%emt 0:00:01]} Qd6 {[%emt 0:01:11]} 14. Rb1 {[%emt 0:00:23]} Rfd8 {[%emt 0:01:41]} 15. b4 {[%emt 0:00:10]} Nd7 {[%emt 0:00:01]} 16. h4 {[%emt 0:04:15]} h5 {[%emt 0:01:37]} 17. Bg5 {[%emt 0:00:45][%cal Od5e7]} f6 {[%emt 0:00:14]} 18. Be3 {[%emt 0:00:01] 0x0.002067211c60dp-1022s more active pieces. The black rooks are badly placed.} Rab8 {[%emt 0:02:09]} 19. Re2 {[%emt 0:02:06]} Nd4 {[%emt 0:00:46]} 20. Reb2 {[%emt 0:00:03]} Bc6 {[%emt 0:00:29]} 21. bxc5 {[%emt 0:00:23]} (21. a4 $16) 21... bxc5 $11 {[%emt 0:00:06]} 22. Rxb8 {[%emt 0:00:22]} (22. Bd2 $5 {[%cal Rf3d4]}) 22... Rxb8 {[%emt 0:00:09]} 23. Rxb8+ {[%emt 0:00:10]} Nxb8 {[%emt 0:00:07]} 24. Ne1 {[%emt 0:01:44]} Nd7 {[%emt 0:00:15]} 25. Qb1 {[%emt 0:00:07]} Kf7 {[%emt 0:00:28]} 26. Nd3 {[%emt 0:00:15]} Bf8 {[%emt 0:00:09]} 27. f4 {[%emt 0:00:59][%cal Of4f5]} Qe6 {[%emt 0:03:56] Against f5} 28. f5 {[%emt 0:00:13]} gxf5 {[%emt 0:00:06]} 29. Qd1 {[%emt 0:00:01]} Bxd5 $4 {[%emt 0:00:18][%mdl 8192]} (29... Kg7 $14) 30. exd5 $18 {[%emt 0:01:17]} ({Less strong is} 30. cxd5 Qd6 $16) (30. Qxh5+ Ke7 31. exd5 (31. cxd5 Qf7 $11) 31... Qf7 32. d6+ Ke8 33. Qxf7+ Kxf7 $16) 30... Qa6 {[%emt 0:00:02]} 31. Bxd4 {[%emt 0:00:16]} ({Weaker is} 31. Qxh5+ Ke7 $16) 31... cxd4 {[%emt 0:00:15]} 32. Qxh5+ {[%emt 0:00:02]} Ke7 {[%emt 0:00:01]} 33. Qxf5 {[%emt 0:00:29]} Qxc4 {[%emt 0:00:03]} 34. Qe6+ {[%emt 0:01:03]} Kd8 {[%emt 0:00:02] [#]} 35. Bh3 $1 {[%emt 0:00:00][%csl Gh3][%cal Re6d7]} Qc7 {[%emt 0:01:15] [#]} 36. Kg2 $2 {[%emt 0:00:03]} (36. Nb4 $1 $18 {[%cal Rb4c6] Black must now prevent Nc6+.} Bxb4 37. axb4) 36... Be7 {[%emt 0:00:24]} ({Better is} 36... Qd6 $14) 37. Bf5 $40 {[%emt 0:00:18][%mdl 128] Black is in trouble.} (37. Nf2 $18) 37... Qd6 $2 {[%emt 0:00:30][%mdl 8192]} (37... Nf8 $16 {is a better chance.} 38. Qc6 Qxc6 39. dxc6 Bxa3) 38. h5 {[%emt 0:00:52][%cal Od3c5,Bh4h5,Bh5h6][%mdl 32] Nc5! is the strong threat. The board is on fire.} Qxe6 {[%emt 0:00:02]} 39. dxe6 {[%emt 0:00:00][%mdl 4096] Endgame KBN-KBN} ({Not} 39. Bxe6 Bxa3 40. h6 Bf8 $16) 39... Nb6 {[%emt 0:00:15]} (39... e4 40. exd7 exd3) 40. Nb4 {[%emt 0:00:05] White is clearly winning.} Ke8 {[%emt 0:00:10]} 41. h6 {[%emt 0:00:05] White wants to mate with h7.} Kf8 {[%emt 0:00:02]} 42. Nc6 {[%emt 0:00:24] Threatening mate with h7.} Nd5 {[%emt 0:00:18]} 43. Be4 {[%emt 0:00:17]} Ne3+ {[%emt 0:00:04]} 44. Kf3 {[%emt 0:00:02] h7 would kill now.} Bxa3 {[%emt 0:00:25]} 45. e7+ {[%emt 0:00:08]} Bxe7 {[%emt 0:00:03]} 46. Nxe7 {[%emt 0:00:00]} a5 {[%emt 0:00:20]} 47. Nf5 {[%emt 0:00:18]} Nxf5 {[%emt 0:00:08]} 48. Bxf5 {[%emt 0:00:00] KB-KP} Kf7 {[%emt 0:00:11]} 49. Bc2 {[%emt 0:00:08]} a4 {[%emt 0:00:08]} 50. Bxa4 {[%emt 0:01:11] KB-K3P} Kg6 {[%emt 0:00:02]} 51. Ke4 {[%emt 0:00:01]} Kxh6 {[%emt 0:00:02] [#]} 52. Kf5 $1 {[%emt 0:00:02]} Kg7 {[%emt 0:00:26]} 53. Bb5 {[%emt 0:00:16]} Kf7 {[%emt 0:00:04]} 54. Bd3 {[%emt 0:00:05]} Ke7 {[%emt 0:00:08]} 55. g4 {[%emt 0:00:17]} Kf7 {[%emt 0:00:03]} 56. Be2 {[%emt 0:00:10]} Ke7 {[%emt 0:00:34]} 57. Bc4 {[%emt 0:00:01] Weighted Error Value: White=0.39/Black=0.40} 1-0

[Event "MCCT Oslo Esports Cup 2022"]
[Site "Oslo"]
[Date "2022.04.20"]
[Round "4.2"]
[White "Praggnanandhaa R"]
[Black "Carlsen, Magnus"]
[Result "0-1"]
[ECO "D50"]
[WhiteElo "2624"]
[BlackElo "2864"]
[Annotator "TA"]
[PlyCount "76"]
[EventDate "2022.04.14"]
[EventType "tourn"]
[EventCountry "NOR"]
[SourceTitle "playchess.com"]
[Source "ChessBase"]
[SourceQuality "1"]
[TimeControl "1500+10"]

{[%evp 14,76,13,9,13,17,13,16,17,15,28,28,16,12,25,25,25,22,29,31,35,25,50,47,51,46,47,45,40,47,42,40,47,48,47,0,20,0,2,-51,-47,-43,-35,-45,-52,-20,0,-429,-406,-442,-462,-461,-467,-466,-185,-457,-464,-465,-447,-457,-423,-442,-387,-553,-549]} 1. d4 {[%emt 0:10:00]} Nf6 {[%emt 0:10:00]} 2. c4 {[%emt 0:00:02]} e6 {[%emt 0:00:07]} 3. Nf3 {[%emt 0:00:03]} d5 {[%emt 0:00:01]} 4. Nc3 {[%emt 0:00:01]} c5 {[%emt 0:00:01]} 5. cxd5 {[%emt 0:00:04]} cxd4 {[%emt 0:00:04]} 6. Qxd4 {[%emt 0:00:08]} exd5 {[%emt 0:00:02]} 7. Bg5 {[%emt 0:00:01]} Be7 {[%emt 0:00:04]} 8. e3 {[%emt 0:00:03]} O-O {[%emt 0:00:03] D50: Queen's Gambit Declined: Dutch-Peruvian Gambit.} 9. Be2 {[%emt 0:00:02]} Nc6 {[%emt 0:00:18]} 10. Qd3 {[%emt 0:00:07] now supersedes 10.Qa4.} h6 {[%emt 0:00:16] The position is equal.} 11. Bh4 {[%emt 0:00:02]} Be6 {[%emt 0:00:42]} 12. O-O {[%emt 0:00:05]} Qb6 {[%emt 0:00:15]} 13. a3 {[%emt 0:00:34]} Rfd8 {[%emt 0:00:40]} (13... Qxb2 $2 14. Rfb1 Bf5 15. Rxb2 $18) 14. b4 {[%emt 0:02:30]} a6 {[%emt 0:00:44]} 15. Rfd1 {[%emt 0:00:12]} Rac8 {[%emt 0:00:30][%cal Od5d4] [#]} 16. h3 $146 {[%emt 0:01:00]} ({Predecessor:} 16. Rab1 g6 17. Na4 Qa7 18. Rbc1 g5 19. Bg3 Ne4 20. Nd4 Nxd4 21. exd4 Rxc1 22. Rxc1 {1-0 (56) Gareyev,T (2596)-Hakobyan,A (2603) Philadelphia 2021}) 16... Qc7 {[%emt 0:04:31][%cal Od5d4]} 17. Rac1 {[%emt 0:00:30]} Qd7 {[%emt 0:01:03]} 18. Qb1 {[%emt 0:04:12]} Qe8 {[%emt 0:00:03]} 19. Bd3 {[%emt 0:02:35]} a5 {[%emt 0:00:13][%cal Ra5b4]} 20. b5 {[%emt 0:00:52]} Nb8 {[%emt 0:00:03][%cal Bc6b8,Bb8d7,Bd7b6][%mdl 32]} 21. a4 {[%emt 0:00:12]} Nbd7 {[%emt 0:00:02]} 22. Nd4 {[%emt 0:00:13]} Nb6 {[%emt 0:00:19]} 23. Bf5 {[%emt 0:01:22]} Bd7 {[%emt 0:02:04]} 24. Bxd7 {[%emt 0:00:41]} Rxd7 {[%emt 0:00:03]} 25. Nf5 {[%emt 0:00:38]} Bd8 {[%emt 0:00:44]} 26. Rd4 {[%emt 0:00:54]} (26. Ne2 $11) 26... Qe6 {[%emt 0:00:50]} 27. Rf4 {[%emt 0:00:52]} Rdc7 {[%emt 0:00:42]} 28. Ne2 {[%emt 0:00:05]} ({Don't play} 28. Nd4 Qd7 29. Bxf6 Bxf6 $19) 28... Rxc1+ {[%emt 0:00:13]} 29. Nxc1 {[%emt 0:00:01]} Nh5 {[%emt 0:01:05][%cal Bf6h5,Bh5f4,Bf4d5][%mdl 32]} 30. Bxd8 $2 {[%emt 0:00:29][%mdl 8192] [#]} (30. Rg4 $1 $11 {and White is okay.}) 30... Nxf4 $19 {[%emt 0:00:06]} 31. Nd4 {[%emt 0:00:29]} Qe4 {[%emt 0:01:57]} 32. Qxe4 {[%emt 0:00:06]} dxe4 {[%emt 0:00:02]} ({Don't blunder} 32... Rxc1+ $2 33. Kh2 dxe4 34. Bxb6 $19) 33. Bxb6 {[%emt 0:00:06] [#] Black must now prevent Ncb3.} Rxc1+ {[%emt 0:00:01] KRN-KBN} 34. Kh2 {[%emt 0:00:03]} Nd5 {[%emt 0:00:07]} 35. Bxa5 {[%emt 0:00:06]} Ra1 {[%emt 0:00:01]} 36. Bd8 {[%emt 0:00:49]} Rxa4 {[%emt 0:00:03]} 37. Nf5 {[%emt 0:00:01]} b6 {[%emt 0:00:34]} 38. Nd6 {[%emt 0:00:45]} (38. Bh4 $142) 38... f6 {[%emt 0:00:04] Weighted Error Value: White=0.27 (precise) /Black=0.04 (flawless)} 0-1